bitfinex/quotes_ETHUSD_20250319
["timestamp","ask_amount","ask_price","bid_price","bid_amount"]
[1742412366697,4.91757,2033.6,2033.2,0.75482]
[1742412367029,4.91751,2033.6,2033.1,6.06]
[1742412367515,4.91715,2033.7,2033.1,6.06]
[1742412367683,4.91715,2033.7,2033.2,0.8278]
[1742412368290,4.9169,2033.8,2033.2,0.8278]
[1742412368501,4.9169,2033.8,2033.3,0.68878]
[1742412368699,4.91746,2033.6,2033.2,0.8278]
[1742412368923,4.91801,2033.4,2033.2,6.8878]
[1742412369127,4.91811,2033.3,2033.2,6.06]
[1742412369498,4.91883,2033.0,2032.7,6.06]
[1742412369823,4.91956,2032.7,2032.6,0.7916]
[1742412370022,5.410893,2033.0,2032.3,0.7916]
[1742412370222,4.91901,2033.0,2032.3,0.7916]
[1742412370426,4.91944,2032.8,2032.3,0.7916]
[1742412370930,10.68764,2033.1,2032.3,0.7916]
[1742412370931,5.769,2033.1,2032.3,0.7916]
[1742412371131,4.91952,2032.8,2032.3,0.7916]
[1742412371323,4.91982,2032.6,2032.3,0.7916]
[1742412371806,4.91966,2032.7,2032.3,0.7916]
[1742412372007,4.91936,2032.8,2032.3,1.20847691]
[1742412372211,4.91919,2032.9,2032.3,1.20847691]
[1742412372508,4.91888,2033.0,2032.3,1.20847691]
[1742412372718,10.68781,2033.1,2032.3,1.20847691]
[1742412372719,10.68775,2033.1,2032.3,1.20847691]
[1742412373057,15.60641,2033.1,2032.3,1.20847691]
[1742412373333,9.8379,2033.0,2032.3,1.20847691]
[1742412373534,4.91915,2032.9,2032.3,1.20847691]
[1742412373735,4.92029,2032.4,2032.3,0.7916]
[1742412373940,4.92053,2032.3,2031.9,6.06]
[1742412374099,4.92125,2032.0,2031.9,6.06]
[1742412374432,4.92239,2031.6,2030.8,0.96396941]
[1742412374605,4.9224,2031.6,2031.2,0.7944]
[1742412374802,4.92186,2031.8,2031.2,0.7944]
[1742412374996,4.92139,2032.0,2031.2,0.7944]
[1742412375398,17.15583664,2032.2,2031.2,0.7944]
[1742412375608,21.08554462,2032.2,2031.3,6.06]
[1742412375936,15.40236462,2032.2,2031.4,0.68544]
[1742412376110,20.32337462,2032.2,2031.5,0.7556]
[1742412376296,4.92044,2032.4,2031.5,0.7556]
[1742412376496,10.6878,2032.7,2031.7,0.7556]
[1742412376701,10.68769,2032.7,2031.9,0.7556]
[1742412376917,5.768,2032.7,2032.0,0.68156]
[1742412377118,15.60732,2032.7,2032.0,0.68156]
[1742412377332,4.91981,2032.6,2032.0,0.68156]
[1742412377633,10.68764,2032.7,2032.0,0.68156]
[1742412377634,4.92007,2032.5,2032.0,0.68156]
[1742412377938,4.91986,2032.6,2032.0,0.68156]
[1742412378131,5.768,2032.7,2032.0,0.68156]
[1742412378333,4.91928,2032.9,2032.2,0.7809]
[1742412378533,9.83859,2032.9,2032.3,6.06]
[1742412378831,26.06426462,2033.1,2032.3,6.06]
[1742412378832,4.91999,2032.6,2032.3,6.06]
[1742412379032,4.92095,2032.2,2031.9,0.7809]
[1742412379333,4.92095,2032.2,2031.7,6.06]
[1742412379334,4.92112,2032.1,2031.7,6.06]
[1742412379641,4.92152,2031.9,2031.7,6.06]
[1742412379831,4.92198,2031.8,2031.6,0.7809]
[1742412380001,4.92212,2031.7,2031.5,6.06]
[1742412380332,15.40171462,2032.1,2031.5,6.06]
[1742412380947,4.92071,2032.3,2031.5,6.06]
[1742412381126,4.92071,2032.3,2031.6,6.8901]
[1742412381127,4.92074,2032.3,2031.6,6.8901]
[1742412381450,4.92057,2032.3,2031.7,6.74901]
[1742412381738,9.63287462,2032.4,2031.7,6.74901]
[1742412382042,4.92079,2032.2,2031.7,6.74901]
[1742412382506,9.63297462,2032.4,2031.7,6.74901]
[1742412382507,9.63292462,2032.4,2031.7,6.74901]
[1742412382708,4.9207,2032.3,2031.7,6.74901]
[1742412382908,9.84145,2032.3,2031.7,6.74901]
[1742412383454,4.92092,2032.2,2031.7,6.74901]
[1742412383637,9.84043,2032.5,2031.9,0.8287]
[1742412383841,4.92059,2032.3,2031.9,0.8287]
[1742412384019,4.92114,2032.1,2031.9,0.8287]
[1742412384220,4.92125,2032.0,2031.7,6.06]
[1742412384543,4.92174,2031.8,2031.6,0.8028]
[1742412384722,4.92166,2031.9,2031.6,0.8028]
[1742412384927,4.92179,2031.8,2031.6,0.8028]
[1742412385125,4.92166,2031.9,2031.6,0.8028]
[1742412385658,4.92222,2031.6,2031.5,6.06]
[1742412385859,4.92307,2031.3,2031.1,0.01]
[1742412386348,4.9228,2031.4,2031.1,0.01]
[1742412386517,4.92311,2031.3,2031.1,0.01]
[1742412386711,4.92319,2031.2,2031.1,0.01]
[1742412386925,9.63517462,2031.4,2031.1,0.01]
[1742412387151,4.92248,2031.5,2031.1,0.01]
[1742412387347,4.92248,2031.5,2031.2,0.8028]
[1742412387722,5.768,2031.7,2031.2,6.8628]
[1742412387926,4.92189,2031.8,2031.2,7.55008]
[1742412388225,4.92189,2031.8,2031.3,6.06]
[1742412388452,4.92186,2031.8,2031.3,6.06]
[1742412388620,4.92201,2031.7,2031.3,6.06]
[1742412388817,4.92149,2032.0,2031.3,6.06]
[1742412389021,4.92114,2032.1,2031.4,0.755008]
[1742412389246,11.44487448,2032.3,2031.5,0.8217]
[1742412389449,4.92088,2032.2,2031.6,6.06]
[1742412390020,10.68831,2032.4,2031.7,6.06]
[1742412390219,20.563,2032.8,2031.8,1.42413334]
[1742412390420,4.91981,2032.6,2031.8,7.43492165]
[1742412390656,4.91981,2032.6,2031.9,6.06]
[1742412390815,9.83985,2032.6,2031.9,6.06]
[1742412391021,9.83982,2032.6,2031.9,6.06]
[1742412391222,25.48248,2032.8,2032.1,0.8196]
[1742412391527,4.91993,2032.6,2032.1,0.8196]
[1742412392127,9.63240462,2032.6,2032.2,6.06]
[1742412392425,4.92008,2032.5,2032.2,6.06]
[1742412392624,4.91962,2032.7,2032.2,6.74034922]
[1742412392846,5.768,2032.8,2032.3,6.863]
[1742412393150,15.39781462,2033.2,2032.4,6.06]
[1742412393358,4.91906,2033.0,2032.4,6.06]
[1742412393561,9.83805,2033.0,2032.4,6.06]
[1742412393763,9.83805,2033.0,2032.4,6.81433492]
[1742412393962,4.91918,2032.9,2032.4,6.06]
[1742412394122,4.91899,2033.0,2032.4,6.06]
[1742412394453,4.91859,2033.1,2032.4,6.06]
[1742412394775,4.91885,2033.0,2032.4,6.06]
[1742412395063,9.83784,2033.0,2032.4,6.06]
[1742412395269,4.91942,2032.8,2032.4,6.06]
[1742412395565,4.92004,2032.5,2032.4,6.06]
[1742412395861,4.91984,2032.6,2032.3,0.803]
[1742412396066,4.92006,2032.5,2032.3,0.803]
[1742412396361,4.92005,2032.5,2032.3,0.803]
[1742412396653,4.92078,2032.2,2031.8,0.8181]
[1742412396857,4.9208,2032.2,2031.8,6.8781]
[1742412397169,9.63299462,2032.3,2031.8,6.8781]
[1742412397319,4.92053,2032.3,2031.8,6.8781]
[1742412397717,4.92062,2032.3,2031.8,6.8781]
[1742412398222,9.84129,2032.3,2031.8,6.8781]
[1742412398527,4.92162,2031.9,2031.5,6.8848]
[1742412398735,4.92174,2031.8,2031.5,6.8848]
[1742412399136,9.63372462,2032.0,2031.5,6.8848]
[1742412399463,4.92159,2031.9,2031.5,6.8848]
[1742412400449,10.68493,2032.2,2031.5,6.8848]
[1742412400725,10.68493,2032.2,2031.5,7.61032105]
[1742412400973,5.764,2032.2,2031.5,7.61032105]
[1742412401153,5.764,2032.2,2031.6,6.06]
[1742412401358,4.92048,2032.4,2031.7,6.06]
[1742412401553,4.92068,2032.3,2031.8,0.831]
[1742412402068,4.92029,2032.4,2031.8,0.831]
[1742412402235,5.904169,2032.5,2031.8,1.5201]
[1742412402564,4.92054,2032.3,2031.8,1.5201]
[1742412402752,4.92106,2032.1,2031.8,0.831]
[1742412402951,0.04871709,2032.0,2031.5,0.8149]
[1742412403265,4.92201,2031.7,2031.5,0.8149]
[1742412403466,4.92201,2031.7,2031.4,6.06]
[1742412403631,4.92198,2031.7,2031.4,6.06]
[1742412404164,4.92237,2031.6,2031.4,6.06]
[1742412404372,4.92203,2031.7,2031.4,6.06]
[1742412404758,4.92247,2031.5,2031.4,6.06]
[1742412405069,4.92175,2031.8,2031.2,6.8322]
[1742412405442,4.92199,2031.7,2031.2,6.8322]
[1742412405646,4.92179,2031.8,2031.2,6.8322]
[1742412405847,4.92172,2031.9,2031.2,6.8322]
[1742412406049,4.92172,2031.9,2031.3,0.68422]
[1742412406872,4.9217,2031.9,2031.3,0.68422]
[1742412407040,4.92183,2031.8,2031.3,0.68422]
[1742412407441,4.92183,2031.8,2031.2,6.8322]
[1742412408158,4.92154,2031.9,2031.2,6.8322]
[1742412408497,4.92162,2031.9,2031.2,6.8322]
[1742412408897,9.63394462,2032.0,2031.2,6.8322]
[1742412409101,4.92132,2032.0,2031.2,6.8322]
[1742412409288,4.92132,2032.0,2031.3,0.68422]
[1742412409611,5.763,2032.1,2031.4,6.8832]
[1742412409821,10.68403,2032.1,2031.4,6.8832]
[1742412409999,5.763,2032.1,2031.4,6.8832]
[1742412410324,4.71246462,2032.6,2031.6,0.8232]
[1742412410472,4.92064,2032.3,2031.6,2.08772]
[1742412410666,4.96960709,2032.2,2031.6,2.08772]
[1742412410911,4.92089,2032.2,2031.6,2.08772]
[1742412411206,0.54997646,2032.5,2031.7,0.6798]
[1742412411415,0.04871709,2032.4,2031.7,0.6798]
[1742412411612,5.52097645,2032.4,2031.7,0.6798]
[1742412411772,10.44147645,2032.4,2031.7,0.6798]
[1742412411969,5.47225936,2032.4,2031.7,0.6798]
[1742412412419,0.55188936,2032.4,2031.7,0.6798]
[1742412412702,5.47217936,2032.4,2031.7,1.04415314]
[1742412412882,1.03922694,2032.3,2031.7,1.04415314]
[1742412413380,4.92038,2032.4,2031.7,1.04415314]
[1742412413695,4.96929709,2032.3,2031.7,1.04415314]
[1742412413878,4.92036,2032.4,2031.7,1.04415314]
[1742412414080,4.92022,2032.5,2031.7,1.04415314]
[1742412414280,5.96221846,2032.5,2031.8,0.40441531]
[1742412414481,4.92038,2032.4,2031.7,1.04415314]
[1742412414680,5.96221846,2032.5,2031.8,0.7849]
[1742412414681,5.96209846,2032.5,2031.8,0.7849]
[1742412414866,4.91982,2032.6,2031.8,0.7849]
[1742412414867,10.62672,2032.6,2031.8,0.7849]
[1742412415071,4.92018,2032.5,2031.8,0.7849]
[1742412415267,9.84038,2032.5,2031.8,0.7849]
[1742412415511,4.71246462,2032.6,2031.8,0.7849]
[1742412415692,9.63299462,2032.3,2031.8,0.7849]
[1742412415870,4.92174,2031.8,2031.7,6.06]
[1742412416076,4.92209,2031.7,2031.3,6.8316]
[1742412416613,4.92265,2031.5,2031.3,6.06]
[1742412417315,4.92271,2031.4,2031.1,0.7757]
[1742412417476,4.92319,2031.2,2031.1,0.01]
[1742412417674,4.92288,2031.4,2031.1,0.01]
[1742412417980,5.415348,2031.3,2031.1,0.01]
[1742412418185,4.92256,2031.5,2031.1,0.01]
[1742412418700,4.92306,2031.3,2031.1,0.01]
[1742412419005,4.92319,2031.2,2031.1,0.01]
[1742412420690,4.97190709,2031.2,2031.1,1e-05]
[1742412420874,7.58141226,2031.2,2031.1,1e-05]
[1742412421078,7.53269517,2031.2,2031.1,1e-05]
[1742412421527,10.53269517,2031.2,2031.1,1e-05]
[1742412421881,11.34639517,2031.2,2031.1,1e-05]
[1742412422091,12.5748448,2031.2,2031.1,1e-05]
[1742412422910,4.92465,2030.6,2030.5,0.19669552]
[1742412423116,19.20243171,2030.6,2030.5,0.19669552]
[1742412423316,19.15371462,2030.6,2030.5,0.19669552]
[1742412423606,15.39511462,2030.6,2030.5,0.19669552]
[1742412424188,10.68265,2030.6,2030.5,0.19669552]
[1742412424389,5.758,2030.6,2030.5,0.19669552]
[1742412424785,18.56040171,2030.6,2030.5,0.19669552]
[1742412425000,21.51168462,2030.6,2030.5,0.19669552]
[1742412425515,22.34088462,2030.6,2030.5,0.19669552]
[1742412425677,4.9261,2030.0,2029.9,6.06]
[1742412426017,4.92526,2030.4,2029.8,0.0907275]
[1742412426313,4.92543,2030.3,2029.9,0.7929]
[1742412426493,4.92575,2030.2,2029.8,0.0907275]
[1742412426688,4.92635,2029.9,2029.8,0.0907275]
[1742412426876,4.92608,2030.1,2029.8,0.0907275]
[1742412427081,4.92621,2030.0,2029.8,0.0907275]
[1742412427295,4.97506709,2029.9,2029.8,0.0907275]
[1742412427481,4.92635,2029.9,2029.8,0.0907275]
[1742412428017,11.65294917,2030.0,2029.8,0.0907275]
[1742412428203,4.92635,2029.9,2029.8,0.0907275]
[1742412430317,10.06681047,2029.9,2029.8,0.0907275]
[1742412430614,13.01809338,2029.9,2029.8,0.0907275]
[1742412430816,4.92635,2029.9,2029.8,0.0907275]
[1742412430984,4.92621,2030.0,2029.8,0.0907275]
[1742412431182,9.85243,2030.0,2029.8,0.0907275]
[1742412431418,4.92635,2029.9,2029.8,0.0907275]
[1742412431786,5.29348985,2029.9,2029.8,0.0907275]
[1742412431980,10.05467156,2029.9,2029.8,0.0907275]
[1742412432181,15.0574041,2029.9,2029.8,7.5e-06]
[1742412432409,14.92872488,2029.9,2029.8,7.5e-06]
[1742412432579,18.87240694,2029.9,2029.8,7.5e-06]
[1742412432784,24.86240694,2029.9,2029.8,7.5e-06]
[1742412432985,0.7873,2029.2,2028.6,6.06]
[1742412433336,4.92916,2028.8,2028.5,0.1225304]
[1742412433621,4.92891,2028.9,2028.5,0.1225304]
[1742412433780,4.92915,2028.8,2028.5,0.1225304]
[1742412434113,4.92854,2029.0,2028.5,0.1225304]
[1742412434313,4.92903,2028.8,2028.5,0.1225304]
[1742412434487,1.04283046,2029.0,2028.5,0.1225304]
[1742412435090,4.92891,2028.9,2028.5,0.1225304]
[1742412435516,1.04283046,2029.0,2028.5,0.1225304]
[1742412435682,10.31860425,2029.4,2028.5,6.23182568]
[1742412436015,4.71246462,2029.1,2028.5,6.1825304]
[1742412436221,4.92899,2028.9,2028.5,6.1825304]
[1742412436511,5.73348,2029.0,2028.5,6.1825304]
[1742412437013,0.8048,2029.0,2028.5,6.1825304]
[1742412437225,6.5858,2029.3,2028.5,6.1825304]
[1742412437416,1.41914051,2029.2,2028.5,6.1825304]
[1742412437581,6.34733051,2029.2,2028.5,6.1825304]
[1742412438130,4.92838,2029.1,2028.5,6.1825304]
[1742412438484,4.92855,2029.0,2028.5,6.1825304]
[1742412438989,14.56927462,2029.1,2028.5,6.1825304]
[1742412439324,6.95547108,2029.3,2028.5,6.1825304]
[1742412439325,5.759,2029.3,2028.5,6.87899344]
[1742412439483,5.759,2029.3,2028.6,0.7511]
[1742412439690,10.68695,2029.3,2028.6,0.7511]
[1742412439890,4.92862,2029.0,2028.6,0.7511]
[1742412440116,4.92829,2029.1,2028.6,0.7511]
[1742412440316,4.92888,2028.9,2028.6,0.7511]
[1742412440623,4.76118171,2028.8,2028.5,0.1225304]
[1742412440921,5.7581,2028.6,2028.5,0.1225304]
[1742412441215,6.48526672,2028.6,2028.5,0.1225304]
[1742412441423,8.69928,2028.2,2028.1,0.01]
[1742412441584,8.69928,2028.2,2026.5,10.22]
[1742412441585,4.9316,2027.8,2027.1,5.20047302]
[1742412441791,5.758,2027.8,2027.1,5.20047302]
[1742412442087,4.93207,2027.6,2027.1,5.20047302]
[1742412442393,4.71246462,2027.6,2026.5,5.20047302]
[1742412442606,11.748,2027.8,2026.6,5.20047302]
[1742412442607,4.9331,2027.2,2026.6,5.20047302]
[1742412442818,6.39091946,2027.2,2026.6,5.20047302]
[1742412443188,6.39091946,2027.2,2026.2,5.20047302]
[1742412443189,4.93328,2027.1,2026.2,5.20047302]
[1742412443496,4.76118171,2027.0,2026.2,5.20047302]
[1742412443685,1.45781946,2027.2,2026.2,5.20047302]
[1742412443891,6.39089946,2027.2,2026.2,5.20047302]
[1742412444087,5.51866462,2027.0,2026.2,5.20047302]
[1742412444292,4.98251709,2026.9,2026.0,5.20047302]
[1742412444587,5.51866462,2027.0,2026.2,0.6474]
[1742412444815,4.71246462,2027.0,2026.2,0.6474]
[1742412445408,4.71246462,2026.7,2026.2,0.6474]
[1742412445604,5.18858279,2026.7,2026.2,0.6474]
[1742412445799,4.71246462,2027.0,2026.2,0.6474]
[1742412446731,4.71246462,2027.7,2026.5,0.6474]
[1742412446907,4.71246462,2027.7,2026.8,0.6474]
[1742412447107,0.8164,2027.8,2027.0,0.6474]
[1742412447308,5.759,2027.9,2027.0,5.84787302]
[1742412447523,1.04714646,2027.8,2027.0,6.43266032]
[1742412448200,10.69032,2027.9,2027.1,0.04933133]
[1742412448201,5.759,2027.9,2027.1,0.04933133]
[1742412448507,20.815,2028.3,2027.3,0.6474]
[1742412448508,20.585,2028.3,2027.3,0.6474]
[1742412448720,20.585,2028.3,2027.5,0.6474]
[1742412448900,10.47246462,2028.4,2027.5,0.6474]
[1742412449233,10.47246462,2028.4,2027.0,6.3447873]
[1742412449234,5.76,2028.4,2027.7,0.6474]
[1742412449528,4.71246462,2028.1,2027.3,0.6474]
[1742412449930,4.93133,2027.9,2027.3,0.6474]
[1742412450099,5.759,2027.9,2027.3,0.6474]
[1742412450844,5.759,2027.9,2027.4,5.20047302]
[1742412451024,7.13935917,2028.4,2027.4,5.24979205]
[1742412451206,1.2447137,2028.3,2027.5,1.1723792]
[1742412451406,7.0037137,2028.3,2027.5,6.37285222]
[1742412451617,1.67599455,2028.4,2027.7,0.6474]
[1742412451823,0.67471391,2028.4,2027.7,0.6474]
[1742412452309,5.759,2028.5,2027.7,0.6474]
[1742412452713,10.68887,2028.5,2027.7,0.6474]
[1742412452938,4.93,2028.4,2027.7,0.6474]
[1742412453135,4.71246462,2028.4,2027.7,0.6474]
[1742412453636,10.47146462,2028.7,2027.9,0.6474]
[1742412453947,12.58488708,2028.7,2027.9,6.43266032]
[1742412454149,4.97841709,2028.6,2027.9,6.43266032]
[1742412454437,5.759,2028.8,2028.0,0.6474]
[1742412454647,10.68804,2028.8,2028.0,0.6474]
[1742412454951,5.759,2028.8,2028.0,0.6474]
[1742412455155,5.759,2028.8,2028.1,0.6474]
[1742412455655,4.92936,2028.7,2028.1,0.6474]
[1742412455817,4.97823709,2028.6,2028.1,0.6474]
[1742412456007,5.60781963,2028.7,2028.1,0.6474]
[1742412456204,4.9296,2028.6,2028.1,0.6474]
[1742412456407,1.05374196,2028.5,2028.1,0.6474]
[1742412456607,9.64171462,2028.8,2028.1,0.6474]
[1742412456903,14.825,2029.0,2028.1,1.01816103]
[1742412457115,4.71246462,2028.8,2028.1,0.6474]
[1742412457326,20.583,2029.0,2028.1,0.6474]
[1742412457525,25.51156,2029.0,2028.1,0.6474]
[1742412457735,25.51156,2029.0,2028.2,0.6474]
[1742412457736,9.64163462,2028.8,2028.2,0.6474]
[1742412458039,7.95131246,2028.9,2028.2,0.6474]
[1742412458212,4.92911,2028.8,2028.2,0.6474]
[1742412458406,12.66371708,2028.9,2028.2,0.6474]
[1742412458812,4.92914,2028.8,2028.2,0.6474]
[1742412459004,1.75928571,2028.7,2028.2,0.6474]
[1742412459408,3.02240246,2028.9,2028.2,0.6474]
[1742412459838,7.95132246,2028.9,2028.2,0.6474]
[1742412460037,0.04871709,2028.8,2028.2,0.6474]
[1742412460255,4.71246462,2028.6,2028.2,0.6474]
[1742412460541,4.71246462,2028.3,2027.8,0.6474]
[1742412460747,1.04034746,2028.2,2027.8,0.6474]
[1742412461039,4.93,2028.4,2027.8,0.6474]
[1742412461239,4.9306,2028.2,2027.8,0.6474]
[1742412461433,4.71246462,2028.3,2027.8,0.6474]
[1742412461810,9.64210462,2028.6,2027.8,0.6474]
[1742412462222,5.71552724,2028.6,2027.8,0.6474]
[1742412462425,4.93036,2028.3,2027.8,0.6474]
[1742412462611,4.93085,2028.1,2027.8,0.6474]
[1742412463139,4.71246462,2028.0,2027.5,0.6474]
[1742412463314,4.93155,2027.8,2027.5,0.6474]
[1742412463512,9.64361462,2028.0,2027.5,0.6474]
[1742412463756,4.9316,2027.8,2027.5,0.6474]
[1742412463905,1.52527843,2027.9,2027.5,0.6474]
[1742412464110,0.04871709,2027.8,2027.0,0.36892412]
[1742412464414,4.93254,2027.4,2027.1,0.6474]
[1742412464814,9.64500462,2027.4,2027.0,0.36892412]
[1742412464942,4.71246462,2027.4,2026.8,0.6474]
[1742412465252,10.11587,2027.3,2026.8,0.6474]
[1742412465426,6.90895346,2027.3,2026.8,0.6474]
[1742412465624,11.84183346,2027.3,2026.8,0.6474]
[1742412465827,4.71246462,2027.1,2026.5,0.6474]
[1742412466020,4.93367,2026.9,2026.5,0.6474]
[1742412466220,4.93359,2027.0,2026.5,0.6474]
[1742412466425,2.10894346,2027.0,2026.5,0.6474]
[1742412466632,6.5103,2027.2,2026.5,0.6474]
[1742412466633,5.756,2027.2,2026.5,0.6474]
[1742412466851,10.68906,2027.2,2026.5,0.6474]
[1742412467161,5.756,2027.2,2026.5,0.6474]
[1742412467458,10.68891,2027.2,2026.5,0.6474]
[1742412467771,5.756,2027.2,2026.5,0.6474]
[1742412467967,4.71246462,2027.6,2026.5,0.6474]
[1742412468126,4.93252,2027.4,2026.6,0.6474]
[1742412468327,4.93222,2027.5,2026.6,0.6474]
[1742412468550,15.49636965,2027.6,2026.6,1.01519536]
[1742412468835,0.91975503,2027.6,2026.6,0.6474]
[1742412469034,0.91975503,2027.6,2026.5,5.756]
[1742412469035,0.91975503,2027.6,2026.8,0.6474]
[1742412469456,19.75596,2028.0,2026.8,0.6474]
[1742412469457,14.825,2028.0,2026.8,0.6474]
[1742412469768,14.825,2028.0,2027.0,0.6474]
[1742412469952,14.825,2028.0,2027.2,0.6474]
[1742412470154,5.756,2028.1,2027.2,0.6474]
[1742412470368,11.36019334,2028.5,2027.3,0.6474]
[1742412470524,11.36019334,2028.5,2027.5,0.6474]
[1742412470525,7.18332242,2028.4,2027.5,0.6474]
[1742412470725,4.93041,2028.3,2027.5,0.6474]
[1742412471171,4.9306,2028.2,2027.5,0.6474]
[1742412471368,4.93111,2028.0,2027.5,0.6474]
[1742412471523,4.97993709,2027.9,2027.5,0.6474]
[1742412471728,0.99110471,2027.8,2027.5,0.6474]
[1742412471955,9.86168,2028.1,2027.5,0.6474]
[1742412472140,5.50586462,2028.2,2027.5,0.6474]
[1742412472343,9.86078,2028.3,2027.5,0.6474]
[1742412472531,4.93034,2028.3,2027.5,0.6474]
[1742412472723,7.13460533,2028.4,2027.5,0.6474]
[1742412472970,4.93057,2028.2,2027.5,0.6474]
[1742412473166,6.92702583,2028.3,2027.5,0.6474]
[1742412473372,4.97928709,2028.2,2027.5,0.6474]
[1742412473541,4.93098,2028.0,2027.5,0.6474]
[1742412473730,6.36052851,2028.2,2027.5,0.6474]
[1742412474068,1.99667583,2028.3,2027.5,0.6474]
[1742412474532,2.04539292,2028.3,2027.5,0.6474]
[1742412474734,0.69753929,2028.2,2027.5,0.6474]
[1742412474932,1.99667583,2028.3,2027.5,0.6474]
[1742412475665,4.92963,2028.6,2027.7,0.6474]
[1742412475859,4.92965,2028.6,2027.7,0.6474]
[1742412476080,4.93015,2028.4,2027.7,0.6474]
[1742412476252,0.04871709,2028.3,2027.7,0.6474]
[1742412476562,4.93107,2028.0,2027.7,0.6474]
[1742412476744,6.53522042,2028.0,2027.7,0.6474]
[1742412477369,10.68448,2028.2,2027.7,0.6474]
[1742412477671,4.9311,2028.0,2027.7,0.6474]
[1742412477968,4.93078,2028.1,2027.7,0.6474]
[1742412478162,11.36295963,2028.2,2027.7,0.6474]
[1742412478374,4.93075,2028.1,2027.7,0.6474]
[1742412478576,1.72877417,2028.1,2027.7,0.6474]
[1742412479171,5.754,2028.2,2027.7,0.6474]
[1742412479374,1.00477877,2028.7,2027.7,0.6474]
[1742412479574,4.92908,2028.8,2027.7,0.6474]
[1742412479887,4.92879,2028.9,2027.9,0.6474]
[1742412480070,4.92879,2028.9,2028.0,0.6474]
[1742412480249,1.20895962,2028.8,2028.2,0.6474]
[1742412480674,1.20895962,2028.8,2028.3,0.04929957]
[1742412480864,14.828,2029.0,2028.2,0.6474]
[1742412481061,5.753,2029.2,2028.2,0.6474]
[1742412481799,4.92742,2029.5,2028.4,0.6474]
[1742412482002,4.97628709,2029.4,2028.5,5.752]
[1742412482154,0.55635477,2029.3,2028.6,0.6474]
[1742412482495,9.85532,2029.4,2028.6,0.6474]
[1742412482693,4.92763,2029.4,2028.6,0.6474]
[1742412482851,4.92795,2029.3,2028.6,0.6474]
[1742412483051,4.92763,2029.4,2028.6,0.6474]
[1742412483255,4.92816,2029.2,2028.6,0.6474]
[1742412483555,0.54153309,2029.1,2028.6,0.6474]
[1742412483772,0.492816,2029.1,2028.6,0.6474]
[1742412483970,5.751,2029.4,2028.6,1.02491876]
[1742412484176,10.67857,2029.4,2028.6,1.02491876]
[1742412484378,4.92781,2029.3,2028.6,1.02491876]
[1742412484576,9.63954462,2029.6,2028.6,1.02491876]
[1742412484850,19.75306,2029.7,2028.8,0.6474]
[1742412485050,2.550406,2029.6,2028.8,0.6474]
[1742412485386,4.92747,2029.5,2028.8,0.6474]
[1742412485586,0.04871709,2029.4,2028.8,0.6474]
[1742412485883,4.92747,2029.5,2028.8,0.6474]
[1742412486088,4.9278,2029.4,2028.8,0.6474]
[1742412486287,6.14686706,2029.4,2028.8,0.6474]
[1742412486584,2.550406,2029.6,2028.8,0.6474]
[1742412486886,14.826,2029.7,2028.8,0.69667863]
[1742412487285,5.751,2029.9,2028.8,0.69667863]
[1742412487498,5.751,2029.9,2028.8,0.6474]
[1742412487669,5.751,2029.9,2028.8,0.69667186]
[1742412487976,4.92538,2030.3,2029.1,0.6474]
[1742412488173,1.974738,2030.3,2029.3,0.6474]
[1742412488373,4.92574,2030.2,2029.3,0.6474]
[1742412489286,4.92574,2030.2,2029.4,0.6474]
[1742412489487,5.39091425,2030.2,2029.4,0.6474]
[1742412489691,4.92648,2029.9,2029.4,0.6474]
[1742412489891,5.911728,2029.9,2029.4,0.6474]
[1742412490098,0.985248,2029.9,2029.4,0.6474]
[1742412490406,6.900258,2030.3,2029.4,0.6474]
[1742412490576,4.92583,2030.2,2029.4,0.6474]
[1742412490977,1.974738,2030.3,2029.4,0.6474]
[1742412491189,5.60256963,2030.9,2029.5,0.04926248]
[1742412491391,4.71246462,2030.9,2029.6,0.6474]
[1742412491603,4.92501,2030.5,2029.7,5.747]
[1742412491779,4.92461,2030.7,2029.8,0.6474]
[1742412491979,4.92467,2030.6,2029.8,0.6474]
[1742412492216,5.909598,2030.6,2029.8,1.28684]
[1742412492586,4.92427,2030.8,2029.9,0.04925863]
[1742412492893,6.42544963,2031.0,2029.8,1.28684]
[1742412492894,10.67086,2031.0,2030.0,0.6474]
[1742412493096,4.92394,2030.9,2030.0,0.6474]
[1742412493412,4.92386,2031.0,2030.0,0.6474]
[1742412493612,0.58726063,2031.6,2029.8,0.63944]
[1742412493613,0.68844963,2031.4,2030.2,0.6474]
[1742412493810,0.01,2031.4,2030.5,0.6474]
[1742412494109,4.92329,2031.2,2030.7,0.6474]
[1742412494273,4.92331,2031.2,2030.7,0.6474]
[1742412494478,4.92355,2031.1,2030.7,0.6474]
[1742412494708,4.92395,2030.9,2030.7,0.6474]
[1742412494937,0.67844963,2031.1,2030.7,0.6474]
[1742412494938,9.84729,2031.1,2030.7,0.6474]
[1742412495223,4.92371,2031.0,2030.7,0.6474]
[1742412495396,4.92416,2030.8,2030.7,0.6474]
[1742412495597,4.9248,2030.6,2030.4,0.6474]
[1742412495798,4.92419,2030.8,2030.4,0.6474]
[1742412496207,4.92393,2030.9,2030.4,0.6474]
[1742412496427,6.5815839,2030.9,2030.4,0.6474]
[1742412496633,4.92418,2030.8,2030.4,0.6474]
[1742412496998,6.5815839,2030.9,2030.4,0.6474]
[1742412497199,4.9245,2030.7,2030.4,0.6474]
[1742412497528,9.84911,2030.7,2030.4,0.6474]
[1742412497705,4.92467,2030.6,2030.4,0.6474]
[1742412497908,4.92431,2030.8,2030.4,0.6474]
[1742412498429,4.92395,2030.9,2030.4,0.6474]
[1742412498648,4.92431,2030.8,2030.4,0.6474]